[Event "Early-Titled-Tuesday-Blitz-May-28-2024"]
[Site "Chess.com"]
[Date "2024.05.28"]
[Round "11"]
[White "djokovic74"]
[Black "McCarthyStone"]
[Result "1-0"]
[WhiteElo "2726"]
[BlackElo "2470"]
[TimeControl "180+1"]
[EndTime "10:08:02 PDT"]
[Termination "djokovic74 won by resignation"]

1. e4 {[%clk 0:03:00.9]} 1... e5 {[%clk 0:02:59.9]} 2. Nf3 {[%clk 0:03:01]} 2...
d6 {[%clk 0:03:00.4]} 3. d4 {[%clk 0:03:00.7]} 3... exd4 {[%clk 0:03:01.3]} 4.
Nxd4 {[%clk 0:03:01.6]} 4... Nf6 {[%clk 0:03:01.9]} 5. Nc3 {[%clk 0:03:02.3]}
5... g6 {[%clk 0:03:02.5]} 6. Be2 {[%clk 0:03:01.5]} 6... Bg7 {[%clk 0:03:02.4]}
7. O-O {[%clk 0:03:02.2]} 7... O-O {[%clk 0:03:01.5]} 8. Nb3 {[%clk 0:03:02.6]}
8... a5 {[%clk 0:03:00.7]} 9. a4 {[%clk 0:03:02.5]} 9... Re8 {[%clk 0:03:00.9]}
10. f3 {[%clk 0:03:02.7]} 10... Nc6 {[%clk 0:02:59.1]} 11. Bg5 {[%clk
0:03:00.5]} 11... h6 {[%clk 0:02:59]} 12. Bh4 {[%clk 0:03:01.1]} 12... g5 {[%clk
0:02:56.9]} 13. Bf2 {[%clk 0:03:01.3]} 13... Be6 {[%clk 0:02:56.3]} 14. Qd2
{[%clk 0:03:01.1]} 14... Ne5 {[%clk 0:02:52.1]} 15. Nd4 {[%clk 0:03:01.1]} 15...
Bd7 {[%clk 0:02:48.2]} 16. Rfe1 {[%clk 0:03:00.9]} 16... Ng6 {[%clk 0:02:47.4]}
17. Rad1 {[%clk 0:03:00.9]} 17... Nf4 {[%clk 0:02:34.9]} 18. Bf1 {[%clk
0:03:01.4]} 18... d5 {[%clk 0:02:28.4]} 19. e5 {[%clk 0:02:59.9]} 19... N6h5
{[%clk 0:02:20.1]} 20. g4 {[%clk 0:02:56.7]} 20... Bxe5 {[%clk 0:01:50.5]} 21.
gxh5 {[%clk 0:02:56.9]} 21... Nxh5 {[%clk 0:01:51.4]} 22. Nxd5 {[%clk
0:02:51.8]} 22... c6 {[%clk 0:01:39.2]} 23. Nc3 {[%clk 0:02:52]} 23... Qb8
{[%clk 0:01:28.9]} 24. h3 {[%clk 0:02:43]} 24... Nf4 {[%clk 0:01:25.6]} 25. Bg3
{[%clk 0:02:29.2]} 25... Bxh3 {[%clk 0:01:14.8]} 26. Bxf4 {[%clk 0:02:17.7]}
26... Bxf4 {[%clk 0:01:14.6]} 27. Qf2 {[%clk 0:02:17.4]} 27... Rxe1 {[%clk
0:00:59.2]} 28. Qxe1 {[%clk 0:02:17.5]} 28... Bxf1 {[%clk 0:00:46.9]} 29. Qxf1
{[%clk 0:02:15]} 29... Qe5 {[%clk 0:00:21.6]} 30. Nde2 {[%clk 0:02:07.7]} 30...
Be3+ {[%clk 0:00:22]} 31. Kg2 {[%clk 0:02:07.6]} 31... Re8 {[%clk 0:00:20.7]}
32. Qh1 {[%clk 0:02:06.1]} 32... Kg7 {[%clk 0:00:20.2]} 33. Qh5 {[%clk
0:02:03.6]} 33... Bb6 {[%clk 0:00:18.7]} 34. Rd7 {[%clk 0:01:56.2]} 34... Re7
{[%clk 0:00:13.5]} 35. Rd3 {[%clk 0:01:51.5]} 35... Qc5 {[%clk 0:00:12.5]} 36.
Nd4 {[%clk 0:01:31.4]} 36... Rd7 {[%clk 0:00:06.2]} 37. Ne6+ {[%clk 0:01:31.3]}
37... Kf6 {[%clk 0:00:03.6]} 38. Nxc5 {[%clk 0:01:30.6]} 1-0

[Event "Early-Titled-Tuesday-Blitz-May-28-2024"]
[Site "Chess.com"]
[Date "2024.05.28"]
[Round "11"]
[White "Cayse"]
[Black "Polish_fighter3000"]
[Result "0-1"]
[WhiteElo "2845"]
[BlackElo "3117"]
[TimeControl "180+1"]
[EndTime "10:08:05 PDT"]
[Termination "Polish_fighter3000 won on time"]

1. e4 {[%clk 0:03:00.9]} 1... e6 {[%clk 0:02:59.8]} 2. d4 {[%clk 0:02:59.2]}
2... d5 {[%clk 0:03:00.4]} 3. e5 {[%clk 0:02:59.5]} 3... c5 {[%clk 0:03:00.1]}
4. c3 {[%clk 0:02:59.8]} 4... Bd7 {[%clk 0:03:00.5]} 5. Nf3 {[%clk 0:02:57.9]}
5... a6 {[%clk 0:03:00.7]} 6. Be2 {[%clk 0:02:55.9]} 6... cxd4 {[%clk 0:02:55]}
7. cxd4 {[%clk 0:02:55.7]} 7... Bb5 {[%clk 0:02:54.9]} 8. Nc3 {[%clk 0:02:54.9]}
8... Bxe2 {[%clk 0:02:54.3]} 9. Nxe2 {[%clk 0:02:53.9]} 9... Nc6 {[%clk
0:02:54.9]} 10. O-O {[%clk 0:02:53.5]} 10... Nge7 {[%clk 0:02:54.9]} 11. Qd3
{[%clk 0:02:51.5]} 11... Rc8 {[%clk 0:02:51.6]} 12. Bd2 {[%clk 0:02:50.8]} 12...
Qb6 {[%clk 0:02:50.3]} 13. Rfc1 {[%clk 0:02:46.9]} 13... Qb5 {[%clk 0:02:45.2]}
14. Qxb5 {[%clk 0:02:40.4]} 14... axb5 {[%clk 0:02:46.1]} 15. a4 {[%clk
0:02:40.4]} 15... bxa4 {[%clk 0:02:42.6]} 16. Rxa4 {[%clk 0:02:39.9]} 16... f6
{[%clk 0:02:21]} 17. exf6 {[%clk 0:02:19.1]} 17... gxf6 {[%clk 0:02:20.9]} 18.
b4 {[%clk 0:02:19.6]} 18... Nd8 {[%clk 0:02:15.6]} 19. Nf4 {[%clk 0:01:42.4]}
19... Rxc1+ {[%clk 0:02:08.6]} 20. Bxc1 {[%clk 0:01:41.9]} 20... Nc8 {[%clk
0:01:37.1]} 21. Nd3 {[%clk 0:01:19.6]} 21... Nb6 {[%clk 0:01:35.6]} 22. Ra7
{[%clk 0:01:17.2]} 22... Bd6 {[%clk 0:01:32.7]} 23. Nc5 {[%clk 0:00:58.8]} 23...
Bb8 {[%clk 0:01:32.3]} 24. Ra5 {[%clk 0:00:58.6]} 24... Kf7 {[%clk 0:01:20.8]}
25. Rb5 {[%clk 0:00:48]} 25... Bc7 {[%clk 0:01:17.4]} 26. g3 {[%clk 0:00:35]}
26... Ke7 {[%clk 0:01:05.9]} 27. Kf1 {[%clk 0:00:17.5]} 27... Nc8 {[%clk
0:00:56.8]} 28. Nxb7 {[%clk 0:00:01]} 28... Na7 {[%clk 0:00:57.1]} 29. Rc5
{[%clk 0:00:01]} 29... Bb6 {[%clk 0:00:57.6]} 0-1

[Event "Early-Titled-Tuesday-Blitz-May-28-2024"]
[Site "Chess.com"]
[Date "2024.05.28"]
[Round "11"]
[White "js20000"]
[Black "lachesisQ"]
[Result "0-1"]
[WhiteElo "2711"]
[BlackElo "3069"]
[TimeControl "180+1"]
[EndTime "10:08:05 PDT"]
[Termination "lachesisQ won by resignation"]

1. Nf3 {[%clk 0:03:00.1]} 1... b6 {[%clk 0:02:58.6]} 2. b3 {[%clk 0:02:59.6]}
2... Bb7 {[%clk 0:02:59.4]} 3. Bb2 {[%clk 0:03:00]} 3... d6 {[%clk 0:02:59.9]}
4. d4 {[%clk 0:02:59]} 4... Nd7 {[%clk 0:03:00.1]} 5. g3 {[%clk 0:02:58.9]} 5...
g6 {[%clk 0:02:59.8]} 6. Bg2 {[%clk 0:02:59.3]} 6... Bg7 {[%clk 0:03:00.3]} 7.
O-O {[%clk 0:02:59.8]} 7... f5 {[%clk 0:03:00.8]} 8. c4 {[%clk 0:02:59.4]} 8...
Ngf6 {[%clk 0:02:57.2]} 9. Ng5 {[%clk 0:02:56.4]} 9... Bxg2 {[%clk 0:02:58.1]}
10. Ne6 {[%clk 0:02:51]} 10... Qc8 {[%clk 0:02:55.8]} 11. Kxg2 {[%clk
0:02:49.2]} 11... Kf7 {[%clk 0:02:48.9]} 12. d5 {[%clk 0:02:46.6]} 12... Nc5
{[%clk 0:02:47.4]} 13. Nxg7 {[%clk 0:02:41]} 13... Kxg7 {[%clk 0:02:48.3]} 14.
Nc3 {[%clk 0:02:40.2]} 14... Rf8 {[%clk 0:02:45.9]} 15. b4 {[%clk 0:02:37.6]}
15... Ncd7 {[%clk 0:02:43.7]} 16. Nb5 {[%clk 0:02:37.4]} 16... Rf7 {[%clk
0:02:40.1]} 17. Nd4 {[%clk 0:02:37.2]} 17... Nf8 {[%clk 0:02:40.3]} 18. Nc6
{[%clk 0:02:25.4]} 18... Qd7 {[%clk 0:02:37.4]} 19. Re1 {[%clk 0:02:21.1]} 19...
Kg8 {[%clk 0:02:37.1]} 20. Bxf6 {[%clk 0:02:14.4]} 20... Rxf6 {[%clk 0:02:35.8]}
21. e4 {[%clk 0:02:14.9]} 21... e5 {[%clk 0:02:35]} 22. c5 {[%clk 0:02:00.9]}
22... f4 {[%clk 0:02:32.8]} 23. f3 {[%clk 0:01:58.4]} 23... h5 {[%clk
0:02:31.8]} 24. cxd6 {[%clk 0:01:53.7]} 24... cxd6 {[%clk 0:02:31.5]} 25. a4
{[%clk 0:01:53.7]} 25... Nh7 {[%clk 0:02:29.7]} 26. Rh1 {[%clk 0:01:28]} 26...
Raf8 {[%clk 0:02:25.3]} 27. Ra3 {[%clk 0:01:25.6]} 27... fxg3 {[%clk 0:02:20.8]}
28. hxg3 {[%clk 0:01:24.7]} 28... Ng5 {[%clk 0:02:21.1]} 29. Qd2 {[%clk
0:01:04.4]} 29... Nxf3 {[%clk 0:02:15.4]} 30. Qe3 {[%clk 0:00:49]} 30... Qg4
{[%clk 0:02:14.3]} 31. Ne7+ {[%clk 0:00:43.6]} 31... Kg7 {[%clk 0:02:08.3]} 32.
Nf5+ {[%clk 0:00:24.1]} 32... gxf5 {[%clk 0:02:01.4]} 33. Qxf3 {[%clk
0:00:24.1]} 33... fxe4 {[%clk 0:02:01.9]} 34. Qxg4+ {[%clk 0:00:23.5]} 34...
hxg4 {[%clk 0:02:02.8]} 35. Ra2 {[%clk 0:00:19.9]} 35... e3 {[%clk 0:02:02.8]}
36. Rh4 {[%clk 0:00:19.1]} 36... Rf2+ {[%clk 0:01:53.9]} 37. Rxf2 {[%clk
0:00:18.7]} 37... Rxf2+ {[%clk 0:01:53.7]} 38. Kg1 {[%clk 0:00:19.2]} 38... Kf6
{[%clk 0:01:48.8]} 39. Rxg4 {[%clk 0:00:20.1]} 39... Kf5 {[%clk 0:01:49]} 40.
Rh4 {[%clk 0:00:12.1]} 40... e4 {[%clk 0:01:41.5]} 41. g4+ {[%clk 0:00:05.9]}
41... Ke5 {[%clk 0:01:37.2]} 42. g5 {[%clk 0:00:05.8]} 42... Rf5 {[%clk
0:01:37.5]} 43. Kg2 {[%clk 0:00:01.5]} 43... Kd4 {[%clk 0:01:31.2]} 44. Rh1
{[%clk 0:00:01.2]} 44... Rxg5+ {[%clk 0:01:30.1]} 0-1

[Event "Early-Titled-Tuesday-Blitz-May-28-2024"]
[Site "Chess.com"]
[Date "2024.05.28"]
[Round "11"]
[White "ccccvhhhj"]
[Black "NovakRatko"]
[Result "1-0"]
[WhiteElo "2459"]
[BlackElo "2359"]
[TimeControl "180+1"]
[EndTime "10:08:06 PDT"]
[Termination "ccccvhhhj won by resignation"]

1. e4 {[%clk 0:03:00.9]} 1... d5 {[%clk 0:02:59]} 2. exd5 {[%clk 0:02:59.5]}
2... c6 {[%clk 0:02:59.2]} 3. Nf3 {[%clk 0:02:58.8]} 3... cxd5 {[%clk
0:02:58.8]} 4. d4 {[%clk 0:02:59.2]} 4... Nc6 {[%clk 0:02:59.1]} 5. Be2 {[%clk
0:02:50.2]} 5... f6 {[%clk 0:02:58.1]} 6. O-O {[%clk 0:02:49.2]} 6... Bg4 {[%clk
0:02:58.6]} 7. c4 {[%clk 0:02:34.4]} 7... e6 {[%clk 0:02:58.3]} 8. Nc3 {[%clk
0:02:33.3]} 8... Bb4 {[%clk 0:02:55.8]} 9. cxd5 {[%clk 0:02:33.1]} 9... exd5
{[%clk 0:02:55.4]} 10. Qb3 {[%clk 0:02:30.3]} 10... Nge7 {[%clk 0:02:53.4]} 11.
Bf4 {[%clk 0:02:24.3]} 11... O-O {[%clk 0:02:51.4]} 12. Rad1 {[%clk 0:02:19.4]}
12... Kh8 {[%clk 0:02:50.6]} 13. h3 {[%clk 0:02:18.3]} 13... Bh5 {[%clk
0:02:49.8]} 14. a3 {[%clk 0:02:11.9]} 14... Bd6 {[%clk 0:02:48.1]} 15. Bxd6
{[%clk 0:02:09.7]} 15... Qxd6 {[%clk 0:02:47.9]} 16. Rfe1 {[%clk 0:01:53.5]}
16... Bf7 {[%clk 0:02:42.5]} 17. Nb5 {[%clk 0:01:49.4]} 17... Qf4 {[%clk
0:02:37.4]} 18. Bd3 {[%clk 0:01:42.1]} 18... a6 {[%clk 0:02:33.5]} 19. Nc3
{[%clk 0:01:42.6]} 19... b5 {[%clk 0:02:16.5]} 20. Bb1 {[%clk 0:01:42.1]} 20...
Rad8 {[%clk 0:02:06]} 21. Ne2 {[%clk 0:01:37.8]} 21... Qd6 {[%clk 0:01:59.4]}
22. Ng3 {[%clk 0:01:37.7]} 22... Bg6 {[%clk 0:01:45]} 23. Bxg6 {[%clk 0:01:38]}
23... Nxg6 {[%clk 0:01:44.8]} 24. Rc1 {[%clk 0:01:34.1]} 24... Nce7 {[%clk
0:01:39.8]} 25. Rc3 {[%clk 0:01:27.5]} 25... Nf4 {[%clk 0:01:32.9]} 26. Rec1
{[%clk 0:01:27.8]} 26... Neg6 {[%clk 0:01:32]} 27. Rc7 {[%clk 0:01:26.9]} 27...
h5 {[%clk 0:01:25.1]} 28. R1c6 {[%clk 0:01:26.6]} 28... Nxh3+ {[%clk 0:01:15.9]}
29. gxh3 {[%clk 0:01:18.8]} 29... Qf4 {[%clk 0:01:16.1]} 30. Qe3 {[%clk
0:01:16]} 30... h4 {[%clk 0:01:07.3]} 31. Qxf4 {[%clk 0:01:15.1]} 31... Nxf4
{[%clk 0:01:07.7]} 32. Nxh4 {[%clk 0:01:11.6]} 32... Nxh3+ {[%clk 0:01:07.9]}
33. Kg2 {[%clk 0:01:11.5]} 33... Nf4+ {[%clk 0:01:08.2]} 34. Kf3 {[%clk
0:01:08.2]} 34... g5 {[%clk 0:01:08.5]} 35. Nhf5 {[%clk 0:01:06.1]} 35... Ng6
{[%clk 0:00:43.4]} 36. Rc1 {[%clk 0:00:56]} 1-0

[Event "Early-Titled-Tuesday-Blitz-May-28-2024"]
[Site "Chess.com"]
[Date "2024.05.28"]
[Round "11"]
[White "N_I_Chess"]
[Black "Gumugama"]
[Result "1-0"]
[WhiteElo "2239"]
[BlackElo "2294"]
[TimeControl "180+1"]
[EndTime "10:08:09 PDT"]
[Termination "N_I_Chess won by checkmate"]

1. d4 {[%clk 0:02:54.6]} 1... Nf6 {[%clk 0:02:59.4]} 2. c4 {[%clk 0:02:53]} 2...
g6 {[%clk 0:02:59.5]} 3. Nc3 {[%clk 0:02:52]} 3... Bg7 {[%clk 0:02:59.7]} 4. e4
{[%clk 0:02:50.7]} 4... O-O {[%clk 0:02:59.9]} 5. f4 {[%clk 0:02:48.9]} 5... d6
{[%clk 0:02:59.8]} 6. Nf3 {[%clk 0:02:43.3]} 6... c5 {[%clk 0:02:55]} 7. d5
{[%clk 0:02:43.4]} 7... b5 {[%clk 0:02:49.2]} 8. cxb5 {[%clk 0:02:43]} 8... a6
{[%clk 0:02:49.3]} 9. bxa6 {[%clk 0:02:43.9]} 9... Bxa6 {[%clk 0:02:49.5]} 10.
Bxa6 {[%clk 0:02:42.9]} 10... Nxa6 {[%clk 0:02:50.4]} 11. O-O {[%clk 0:02:39]}
11... Qb6 {[%clk 0:02:49.4]} 12. e5 {[%clk 0:02:36]} 12... Ne8 {[%clk
0:02:35.8]} 13. f5 {[%clk 0:02:17.1]} 13... dxe5 {[%clk 0:02:32.2]} 14. Qe2
{[%clk 0:02:13.3]} 14... Qc7 {[%clk 0:02:22.9]} 15. fxg6 {[%clk 0:02:03.8]}
15... hxg6 {[%clk 0:02:20.8]} 16. Bg5 {[%clk 0:02:02.5]} 16... Nf6 {[%clk
0:02:08.6]} 17. Nxe5 {[%clk 0:01:48.5]} 17... Rfb8 {[%clk 0:01:58.5]} 18. Rae1
{[%clk 0:01:31.2]} 18... Nb4 {[%clk 0:01:52.3]} 19. a3 {[%clk 0:01:12.4]} 19...
Na6 {[%clk 0:01:27]} 20. Qf3 {[%clk 0:01:02.2]} 20... Rf8 {[%clk 0:01:05.9]} 21.
Nc6 {[%clk 0:00:52.2]} 21... Rfe8 {[%clk 0:00:32]} 22. Ne4 {[%clk 0:00:42]}
22... Nxe4 {[%clk 0:00:13.2]} 23. Qxf7+ {[%clk 0:00:39.9]} 23... Kh7 {[%clk
0:00:13.4]} 24. Rxe4 {[%clk 0:00:34.7]} 24... Rf8 {[%clk 0:00:11.4]} 25. Rh4#
{[%clk 0:00:32.5]} 1-0

[Event "Early-Titled-Tuesday-Blitz-May-28-2024"]
[Site "Chess.com"]
[Date "2024.05.28"]
[Round "11"]
[White "luca_va99"]
[Black "Lily_Schirmbeck"]
[Result "1-0"]
[WhiteElo "2194"]
[BlackElo "1831"]
[TimeControl "180+1"]
[EndTime "10:08:11 PDT"]
[Termination "luca_va99 won by resignation"]

1. e4 {[%clk 0:03:00.9]} 1... Nc6 {[%clk 0:02:57.8]} 2. d4 {[%clk 0:02:59.9]}
2... e6 {[%clk 0:02:45.3]} 3. c4 {[%clk 0:02:57.6]} 3... Bb4+ {[%clk 0:02:38.1]}
4. Bd2 {[%clk 0:02:56.2]} 4... Qe7 {[%clk 0:02:31.9]} 5. a3 {[%clk 0:02:54.7]}
5... Bxd2+ {[%clk 0:02:31.1]} 6. Qxd2 {[%clk 0:02:55.6]} 6... d6 {[%clk
0:02:27.8]} 7. Nc3 {[%clk 0:02:55.5]} 7... Bd7 {[%clk 0:02:27.3]} 8. Nf3 {[%clk
0:02:56]} 8... O-O-O {[%clk 0:02:26.8]} 9. Be2 {[%clk 0:02:56.4]} 9... e5 {[%clk
0:02:25.8]} 10. d5 {[%clk 0:02:55.3]} 10... Nb8 {[%clk 0:02:18.7]} 11. Qe3
{[%clk 0:02:51.8]} 11... f5 {[%clk 0:02:15.6]} 12. Qxa7 {[%clk 0:02:51.2]} 12...
fxe4 {[%clk 0:02:14.1]} 13. Nxe4 {[%clk 0:02:45.9]} 13... Nf6 {[%clk 0:02:13.9]}
14. Nc3 {[%clk 0:02:43.9]} 14... e4 {[%clk 0:02:10.7]} 15. Nd4 {[%clk
0:02:42.7]} 15... Qe5 {[%clk 0:02:06.3]} 16. O-O {[%clk 0:02:23.7]} 16... Ng4
{[%clk 0:01:43.1]} 17. Bxg4 {[%clk 0:02:22.4]} 17... Bxg4 {[%clk 0:01:42.9]} 18.
Ndb5 {[%clk 0:02:14.8]} 18... Bd7 {[%clk 0:01:20.7]} 19. Qa8 {[%clk 0:02:13.3]}
19... Bxb5 {[%clk 0:01:15.6]} 20. Nxb5 {[%clk 0:02:14.2]} 20... Rhf8 {[%clk
0:01:09.6]} 21. Na7+ {[%clk 0:02:10.6]} 21... Kd7 {[%clk 0:01:09.2]} 22. Qxb7
{[%clk 0:02:11.1]} 22... Rf5 {[%clk 0:00:57.7]} 23. Nb5 {[%clk 0:02:09.4]} 23...
Rc8 {[%clk 0:00:52.8]} 24. a4 {[%clk 0:01:54.1]} 24... Rh5 {[%clk 0:00:50.7]}
25. g3 {[%clk 0:01:50.1]} 25... Qf5 {[%clk 0:00:32.8]} 26. f4 {[%clk 0:01:19.5]}
26... exf3 {[%clk 0:00:20]} 27. Rae1 {[%clk 0:01:09.1]} 27... Qc2 {[%clk
0:00:13]} 28. Rf2 {[%clk 0:01:04]} 28... Qd3 {[%clk 0:00:08.1]} 29. Na7 {[%clk
0:00:51.8]} 29... Rd8 {[%clk 0:00:07.2]} 30. Qb5+ {[%clk 0:00:51.7]} 30... c6
{[%clk 0:00:05.6]} 31. dxc6+ {[%clk 0:00:49.9]} 1-0

[Event "Early-Titled-Tuesday-Blitz-May-28-2024"]
[Site "Chess.com"]
[Date "2024.05.28"]
[Round "11"]
[White "Alex_Sahakyan2006"]
[Black "subham777"]
[Result "0-1"]
[WhiteElo "2813"]
[BlackElo "2595"]
[TimeControl "180+1"]
[EndTime "10:08:13 PDT"]
[Termination "subham777 won by resignation"]

1. e4 {[%clk 0:03:00.9]} 1... e6 {[%clk 0:02:58.1]} 2. d4 {[%clk 0:03:00.5]}
2... d5 {[%clk 0:02:57.3]} 3. exd5 {[%clk 0:03:01.4]} 3... exd5 {[%clk
0:02:56.7]} 4. Nf3 {[%clk 0:03:01.8]} 4... Nf6 {[%clk 0:02:48.9]} 5. Bd3 {[%clk
0:03:01.5]} 5... Bd6 {[%clk 0:02:48.4]} 6. O-O {[%clk 0:03:01.1]} 6... O-O
{[%clk 0:02:48]} 7. Nc3 {[%clk 0:03:01.2]} 7... h6 {[%clk 0:02:47.2]} 8. Ne2
{[%clk 0:02:59.4]} 8... Bg4 {[%clk 0:02:45.4]} 9. Ng3 {[%clk 0:02:59.3]} 9...
Re8 {[%clk 0:02:43.6]} 10. h3 {[%clk 0:02:58.9]} 10... Bd7 {[%clk 0:02:38.3]}
11. c3 {[%clk 0:02:55.7]} 11... c5 {[%clk 0:02:37.4]} 12. dxc5 {[%clk
0:02:51.5]} 12... Bxc5 {[%clk 0:02:31.9]} 13. Nf5 {[%clk 0:02:51]} 13... Nc6
{[%clk 0:02:28.2]} 14. Nxh6+ {[%clk 0:02:33.1]} 14... gxh6 {[%clk 0:02:27]} 15.
Bxh6 {[%clk 0:02:34]} 15... Ne4 {[%clk 0:02:21.1]} 16. Bxe4 {[%clk 0:02:23]}
16... dxe4 {[%clk 0:02:17.1]} 17. Ng5 {[%clk 0:02:07.4]} 17... Bf5 {[%clk
0:02:07.7]} 18. Qh5 {[%clk 0:01:25.3]} 18... Bg6 {[%clk 0:02:05.8]} 19. Qg4
{[%clk 0:01:18.6]} 19... Ne5 {[%clk 0:01:59.4]} 20. Qg3 {[%clk 0:01:15.7]} 20...
Nd3 {[%clk 0:01:45.6]} 21. b4 {[%clk 0:00:54.9]} 21... Bb6 {[%clk 0:01:37.6]}
22. Rad1 {[%clk 0:00:39.7]} 22... e3 {[%clk 0:01:29.9]} 23. Qf3 {[%clk
0:00:16.6]} 23... e2 {[%clk 0:01:22.2]} 24. Rde1 {[%clk 0:00:12.1]} 24...
exf1=Q+ {[%clk 0:01:15.7]} 25. Rxf1 {[%clk 0:00:13]} 25... Nxf2 {[%clk
0:01:02.5]} 26. Nxf7 {[%clk 0:00:10.9]} 26... Qd3 {[%clk 0:00:43.1]} 27. Qf6
{[%clk 0:00:09.5]} 27... Ne4+ {[%clk 0:00:41.5]} 28. Qxb6 {[%clk 0:00:07.6]}
28... axb6 {[%clk 0:00:40.3]} 29. Ng5 {[%clk 0:00:08.2]} 29... Nxg5 {[%clk
0:00:39.8]} 0-1

[Event "Early-Titled-Tuesday-Blitz-May-28-2024"]
[Site "Chess.com"]
[Date "2024.05.28"]
[Round "11"]
[White "MdChess1734"]
[Black "ManMish2"]
[Result "0-1"]
[WhiteElo "2413"]
[BlackElo "2667"]
[TimeControl "180+1"]
[EndTime "10:08:19 PDT"]
[Termination "ManMish2 won on time"]

1. e4 {[%clk 0:02:44.9]} 1... e5 {[%clk 0:02:59.1]} 2. Nf3 {[%clk 0:02:45.2]}
2... Nc6 {[%clk 0:02:58.8]} 3. Bb5 {[%clk 0:02:45.2]} 3... a6 {[%clk 0:02:58.5]}
4. Ba4 {[%clk 0:02:45.8]} 4... Nf6 {[%clk 0:02:58.2]} 5. O-O {[%clk 0:02:46]}
5... Nxe4 {[%clk 0:02:58.3]} 6. d4 {[%clk 0:02:44.8]} 6... b5 {[%clk 0:02:57.6]}
7. Bb3 {[%clk 0:02:44.4]} 7... d5 {[%clk 0:02:58.1]} 8. dxe5 {[%clk 0:02:43.8]}
8... Be6 {[%clk 0:02:58.3]} 9. c3 {[%clk 0:02:43.4]} 9... Bc5 {[%clk 0:02:57.4]}
10. Nbd2 {[%clk 0:02:43.1]} 10... O-O {[%clk 0:02:57.1]} 11. Bc2 {[%clk
0:02:43]} 11... Nxf2 {[%clk 0:02:57.2]} 12. Rxf2 {[%clk 0:02:42.9]} 12... f6
{[%clk 0:02:57.4]} 13. Nf1 {[%clk 0:02:16.5]} 13... Bxf2+ {[%clk 0:02:56.6]} 14.
Kxf2 {[%clk 0:02:17.4]} 14... fxe5 {[%clk 0:02:57.5]} 15. Kg1 {[%clk 0:02:18]}
15... Bg4 {[%clk 0:02:51.6]} 16. Be3 {[%clk 0:01:33.8]} 16... e4 {[%clk
0:02:45.1]} 17. h3 {[%clk 0:01:07.9]} 17... Bxf3 {[%clk 0:02:30.6]} 18. gxf3
{[%clk 0:00:47.2]} 18... Rxf3 {[%clk 0:02:31.5]} 19. Bb3 {[%clk 0:00:44.6]}
19... Ne7 {[%clk 0:02:30.6]} 20. Bg5 {[%clk 0:00:42.5]} 20... c6 {[%clk
0:02:27]} 21. Bxd5+ {[%clk 0:00:28.9]} 21... cxd5 {[%clk 0:02:14.8]} 22. Bxe7
{[%clk 0:00:28.2]} 22... Qb6+ {[%clk 0:02:13.1]} 23. Kh1 {[%clk 0:00:20.1]}
23... Qe6 {[%clk 0:02:08.3]} 24. Bc5 {[%clk 0:00:08.9]} 24... Qxh3+ {[%clk
0:01:40.5]} 25. Nh2 {[%clk 0:00:08.8]} 25... Rd3 {[%clk 0:01:32.1]} 26. Qe2
{[%clk 0:00:07]} 26... Rc8 {[%clk 0:01:28.1]} 27. Bd4 {[%clk 0:00:06.7]} 27...
Rf8 {[%clk 0:01:28.2]} 28. Rg1 {[%clk 0:00:06.3]} 28... g6 {[%clk 0:01:28.3]}
29. Bc5 {[%clk 0:00:02]} 29... Rff3 {[%clk 0:01:05.8]} 30. Bd4 {[%clk 0:00:01]}
30... Rg3 {[%clk 0:01:00.8]} 31. Rf1 {[%clk 0:00:00.8]} 31... Rdf3 {[%clk
0:00:59.9]} 0-1

[Event "Early-Titled-Tuesday-Blitz-May-28-2024"]
[Site "Chess.com"]
[Date "2024.05.28"]
[Round "11"]
[White "Viktor_Poddubnyi"]
[Black "andrzej"]
[Result "0-1"]
[WhiteElo "2310"]
[BlackElo "2479"]
[TimeControl "180+1"]
[EndTime "10:08:19 PDT"]
[Termination "andrzej won by resignation"]

1. e4 {[%clk 0:03:00.4]} 1... e5 {[%clk 0:03:00.4]} 2. f4 {[%clk 0:03:00.3]}
2... Nf6 {[%clk 0:03:01.1]} 3. fxe5 {[%clk 0:02:55.4]} 3... Nxe4 {[%clk
0:03:01.3]} 4. Nf3 {[%clk 0:02:55.6]} 4... d5 {[%clk 0:03:00.9]} 5. d3 {[%clk
0:02:49.6]} 5... Nc5 {[%clk 0:03:00.7]} 6. Be2 {[%clk 0:02:47.8]} 6... d4 {[%clk
0:02:57.7]} 7. O-O {[%clk 0:02:43.4]} 7... Be7 {[%clk 0:02:57.6]} 8. Qe1 {[%clk
0:02:35]} 8... O-O {[%clk 0:02:57.3]} 9. Qg3 {[%clk 0:02:35.2]} 9... Nc6 {[%clk
0:02:42.5]} 10. Bh6 {[%clk 0:02:29.7]} 10... g6 {[%clk 0:02:42.7]} 11. Nbd2
{[%clk 0:02:11.7]} 11... Nb4 {[%clk 0:02:39]} 12. Ng5 {[%clk 0:01:27.8]} 12...
Be6 {[%clk 0:02:17.6]} 13. Nde4 {[%clk 0:01:13]} 13... Nxe4 {[%clk 0:02:13.3]}
14. Nxe4 {[%clk 0:01:11.3]} 14... Nxc2 {[%clk 0:02:05.2]} 15. Nf6+ {[%clk
0:01:06.3]} 15... Bxf6 {[%clk 0:01:59.5]} 16. exf6 {[%clk 0:01:05.5]} 16... Nxa1
{[%clk 0:01:51.9]} 17. Rxa1 {[%clk 0:01:05.3]} 17... Qd6 {[%clk 0:01:44.4]} 18.
Qh4 {[%clk 0:00:50.8]} 18... Qe5 {[%clk 0:01:36.2]} 19. Bxf8 {[%clk 0:00:37.5]}
19... Rxf8 {[%clk 0:01:28.1]} 20. Rf1 {[%clk 0:00:30.3]} 20... Qe3+ {[%clk
0:01:19.3]} 21. Kh1 {[%clk 0:00:29.1]} 21... Qxe2 {[%clk 0:01:19.4]} 22. Re1
{[%clk 0:00:17.6]} 22... Qh5 {[%clk 0:01:19.1]} 23. Qxd4 {[%clk 0:00:17.5]}
23... g5 {[%clk 0:00:57.9]} 24. Qe5 {[%clk 0:00:16.6]} 24... Qg6 {[%clk
0:00:53.6]} 25. Re3 {[%clk 0:00:15.2]} 25... h6 {[%clk 0:00:46.3]} 26. h3 {[%clk
0:00:14.7]} 26... Qf5 {[%clk 0:00:45.5]} 27. Qxc7 {[%clk 0:00:14]} 27... Qf1+
{[%clk 0:00:42.4]} 28. Kh2 {[%clk 0:00:14.1]} 28... Qf4+ {[%clk 0:00:43]} 29.
Qxf4 {[%clk 0:00:14.2]} 29... gxf4 {[%clk 0:00:43.9]} 0-1